bitfinex-derivatives/quotes_ETHF0:USTF0_20250803
["timestamp","ask_amount","ask_price","bid_price","bid_amount"]
[1754210566452,1.8322,3457.1,3457.0,1.97049]
[1754210569760,1.8322,3457.1,3457.0,1.0896]
[1754210569956,1.8322,3457.1,3457.0,0.2002]
[1754210570754,0.739,3457.1,3456.9,0.57861]
[1754210570956,1.8322,3457.0,3456.9,1.46661]
[1754210571157,1.8322,3457.0,3456.9,1.66821]
[1754210571357,1.8322,3457.0,3456.9,1.97051]
[1754210572866,1.8322,3457.0,3456.9,2.21931]
[1754210573076,0.3023,3457.0,3456.9,2.21931]
[1754210573462,0.3023,3457.0,3456.9,5.42711]
[1754210573661,0.3023,3457.0,3456.9,2.21931]
[1754210573863,1.8322,3457.0,3456.9,0.4018]
[1754210574174,1.8322,3457.0,3456.9,0.886]
[1754210574364,1.8322,3457.0,3456.9,1.1917]
[1754210574565,1.8322,3457.0,3456.9,1.3919]
[1754210577785,1.8322,3457.0,3456.9,0.2002]
[1754210578086,1.8322,3456.7,3456.6,1.0916]
[1754210578680,1.8322,3456.7,3456.5,3.2078]
[1754210578876,1.0932,3456.6,3456.5,4.0978]
[1754210579192,1.8322,3456.6,3456.5,0.89]
[1754210579387,1.8322,3456.5,3456.4,0.57869]
[1754210579687,1.8322,3456.5,3456.4,1.67029]
[1754210579879,1.8322,3456.5,3456.4,1.97259]
[1754210581179,0.5257,3456.3,3456.2,0.3057]
[1754210581485,1.8322,3456.3,3456.2,1.3939]
[1754210581977,1.8322,3456.3,3456.2,1.6627]
[1754210582177,0.7165,3456.7,3456.6,1.31255]
[1754210582378,3.5215,3456.9,3456.8,1.4422]
[1754210582674,1.8327,3456.9,3456.8,1.6921]
[1754210583080,1.1162,3457.2,3456.6,0.57866]
[1754210583282,1.8327,3456.7,3456.6,2.02086]
[1754210583773,0.5193,3456.7,3456.6,2.27076]
[1754210583978,0.3137,3456.7,3456.6,2.27076]
[1754210588787,1.0009,3456.7,3456.6,2.27076]
[1754210589385,1.3218,3456.7,3456.6,2.27076]
[1754210590786,1.6221,3456.7,3456.6,2.27076]
[1754210591188,1.519,3457.1,3457.0,2.02078]
[1754210591381,2.6947529,3457.1,3457.0,2.02078]
[1754210591582,2.6947529,3457.1,3457.0,1.70378]
[1754210591788,2.6947529,3457.1,3457.0,1.50068]
[1754210595287,2.94106346,3457.1,3457.0,1.50068]
[1754210601895,2.94106346,3457.1,3457.0,1.70378]
[1754210605396,2.94106346,3457.1,3457.0,2.02078]
[1754210605597,2.94130905,3457.1,3457.0,2.02078]
[1754210620004,2.94151393,3457.1,3457.0,2.02078]
[1754210620907,2.43561393,3457.1,3457.0,2.02078]
[1754210621110,0.8620529,3457.1,3457.0,2.27098]
[1754210621614,1.3714529,3457.1,3457.0,2.27098]
[1754210621806,1.8305529,3457.1,3457.0,2.27098]
[1754210622200,2.3295529,3457.1,3457.0,0.2138]
[1754210622507,1.7834,3456.9,3456.8,0.57862]
[1754210622708,2.64975592,3456.9,3456.8,0.57862]
[1754210622910,0.6977,3456.7,3456.6,0.6831]
[1754210623110,1.7834,3456.7,3456.6,0.901]
[1754210623906,1.7834,3456.7,3456.6,1.47965]
[1754210624306,1.7834,3456.7,3456.6,1.69365]
[1754210626414,1.7834,3456.7,3456.6,2.01995]
[1754210629015,1.4675,3456.7,3456.6,2.01995]
[1754210629205,1.0084,3456.7,3456.6,2.27015]
[1754210629414,0.81,3456.7,3456.6,2.27015]
[1754210630415,1.2691,3456.7,3456.6,2.27015]
[1754210630816,1.585,3456.7,3456.6,2.27015]
[1754210633320,1.7834,3456.7,3456.6,2.27015]
[1754210638135,1.7834,3456.7,3456.6,2.01995]
[1754210641936,1.7834,3456.7,3456.6,2.27025]
[1754210642137,1.7834,3456.7,3456.6,2.01995]
[1754210642535,1.7834,3456.7,3456.6,2.27025]
[1754210642840,7.0356,3457.2,3457.1,1.27328]
[1754210643040,8.14900606,3457.2,3457.1,0.57858]
[1754210643433,8.14900606,3457.2,3457.0,0.57859]
[1754210643735,0.86627999,3457.1,3457.0,2.26739]
[1754210644037,5.261,3457.2,3457.0,2.26739]
[1754210644038,5.5597,3457.2,3457.1,1.6888]
[1754210644536,0.4585,3457.4,3457.2,0.57856]
[1754210644738,0.2987,3457.4,3457.3,1.6888]
[1754210644931,3.2078,3457.7,3457.4,2.01703]
[1754210645132,3.5065,3457.7,3457.6,1.32229]
[1754210645339,0.2987,3457.7,3457.6,2.26729]
[1754210646529,0.4585,3457.9,3457.6,2.26729]
[1754210646736,0.2987,3457.8,3457.7,1.6888]
[1754210647035,1.2747,3457.8,3457.7,1.6888]
[1754210647236,0.9763,3457.8,3457.7,1.6888]
[1754210648043,0.9763,3457.8,3457.7,4.8966]
[1754210648241,1.2747,3457.8,3457.7,4.8966]
[1754210648545,1.5726,3457.8,3457.7,4.8966]
[1754210649343,1.7746,3457.8,3457.7,4.8966]
[1754210651937,1.7746,3458.1,3458.0,1.32222]
[1754210652448,1.7746,3458.0,3457.8,0.57846]
[1754210652746,1.7746,3457.9,3457.8,0.57846]
[1754210653232,1.7746,3457.9,3457.8,1.27276]
[1754210654342,1.7746,3457.9,3457.8,1.49026]
[1754210654743,1.7746,3457.9,3457.8,1.70866]
[1754210655646,8.0117,3458.2,3458.1,1.32221]
[1754210655944,8.7686,3458.2,3458.1,2.26661]
[1754210656138,8.7686,3458.2,3458.1,2.01651]
[1754210656854,5.5608,3458.2,3458.1,2.01651]
[1754210657341,5.5608,3458.2,3458.1,1.4381]
[1754210657543,5.5608,3458.2,3458.1,1.1302]
[1754210660648,5.5608,3458.2,3458.1,0.9118]
[1754210660950,4.5052,3458.2,3458.0,0.57842]
[1754210661143,4.5052,3458.2,3457.7,3.2078]
[1754210661144,0.719,3457.8,3457.7,3.78628]
[1754210661339,1.7746,3457.8,3457.7,3.78628]
[1754210661750,1.7746,3457.8,3457.7,4.69808]
[1754210662048,1.7746,3457.8,3457.7,4.91648]
[1754210662346,1.7746,3457.8,3457.7,5.22438]
[1754210662746,1.7746,3457.8,3457.7,5.47448]
[1754210664949,0.2987,3457.8,3457.7,5.47448]
[1754210665748,1.2747,3458.1,3458.0,1.04693]
[1754210665951,1.7746,3458.1,3458.0,1.57233]
[1754210666140,1.7746,3458.1,3458.0,1.32223]
[1754210666344,1.7746,3458.1,3458.0,2.01653]
[1754210666853,1.7746,3458.1,3458.0,1.4381]
[1754210667652,1.7746,3458.1,3458.0,1.1302]
[1754210674055,1.7746,3458.1,3457.9,0.57843]
[1754210674252,1.8713,3457.8,3457.7,3.2078]
[1754210674758,1.8713,3457.8,3457.7,4.1113]
[1754210674945,1.8713,3457.8,3457.7,1.1155]
[1754210676058,1.8713,3457.8,3457.7,1.4432]
[1754210676962,1.8713,3457.8,3457.7,0.9035]
[1754210679957,1.8713,3457.8,3457.7,1.48198]
[1754210680462,1.8713,3457.8,3457.7,1.69398]
[1754210680762,1.8713,3457.8,3457.7,2.02168]
[1754210681162,0.3187,3457.8,3457.7,2.27158]
[1754210682262,1.3355,3457.8,3457.7,2.27158]
[1754210682464,1.6567,3457.8,3457.7,2.27158]
[1754210685266,1.8713,3457.8,3457.7,2.27158]
[1754210689870,1.8713,3457.8,3457.7,2.02168]
[1754210693372,1.8713,3457.8,3457.7,1.69398]
[1754210694573,1.8713,3457.8,3457.7,2.02168]
[1754210703679,7.2952,3458.2,3458.1,0.57841]
[1754210703984,9.93145973,3458.2,3458.1,1.97871]
[1754210704481,9.93145973,3458.2,3458.1,2.22881]
[1754210704482,8.40695973,3458.2,3458.1,2.22881]
[1754210704682,4.65155028,3458.2,3458.1,5.43661]
[1754210704982,3.7862,3458.2,3458.1,5.43661]
[1754210705683,4.0874,3458.2,3458.1,5.43661]
[1754210707384,5.0874,3458.2,3458.1,5.43661]
[1754210711391,5.0874,3458.2,3458.1,25.09161]
[1754210711687,5.6119,3458.2,3458.1,25.09161]
[1754210715294,5.6119,3458.2,3458.1,24.84151]
[1754210721487,5.6119,3458.2,3458.1,5.18651]
[1754210721692,5.6119,3458.2,3457.8,0.3045]
[1754210721896,5.6119,3458.2,3457.7,3.2078]
[1754210721897,0.7272,3458.0,3457.9,19.653]
[1754210722101,1.8257,3458.0,3457.9,20.5427]
[1754210722297,1.8257,3458.0,3457.9,20.748]
[1754210723198,1.8257,3458.0,3457.9,21.32644]
[1754210724701,1.8257,3458.0,3457.9,20.43254]
[1754210724998,1.8257,3458.0,3457.9,21.12114]
[1754210725500,1.8257,3457.8,3457.7,3.78627]
[1754210725703,1.8257,3457.8,3457.7,23.43827]
[1754210725902,1.8257,3457.8,3457.7,24.12687]
[1754210726295,1.8257,3457.8,3457.7,24.32797]
[1754210726702,1.8257,3457.8,3457.7,24.53327]
[1754210726899,1.8257,3457.8,3457.7,23.9548]
[1754210727101,1.8257,3457.8,3457.7,4.3028]
[1754210727303,1.8257,3457.8,3457.7,23.9548]
[1754210729107,1.8257,3457.8,3457.7,24.2602]
[1754210732906,1.8257,3457.8,3457.7,23.0609]
[1754210733108,1.8257,3457.8,3457.7,23.7478]
[1754210733511,1.8257,3457.8,3457.7,24.2585]
[1754210737313,1.8257,3457.8,3457.7,24.5082]
[1754210737714,4.4912,3458.2,3458.1,0.726]
[1754210737914,5.35541576,3458.2,3458.1,1.4129]
[1754210738314,6.44481576,3458.2,3458.1,1.4129]
[1754210738917,6.44481576,3458.2,3458.1,1.1092]
[1754210739121,6.44481576,3458.2,3458.0,19.652]
[1754210739410,0.4067,3457.4,3457.3,3.2078]
[1754210739609,1.7944,3457.4,3457.3,22.8598]
[1754210740418,1.7944,3457.4,3457.3,23.5467]
[1754210741323,1.7944,3457.4,3457.3,23.762]
[1754210741525,1.7944,3457.4,3457.3,24.2727]
[1754210742822,0.3237,3457.4,3457.3,24.5224]
[1754210743024,0.5279,3457.4,3457.3,24.5224]
[1754210743224,1.5919,3457.4,3457.3,24.5224]
[1754210743425,1.7944,3457.4,3457.3,24.5224]
[1754210744629,1.7944,3457.4,3457.3,24.2727]
[1754210745832,1.7944,3457.4,3457.3,23.2821]
[1754210746032,1.7944,3457.4,3457.3,24.2727]
[1754210746224,1.0287,3457.4,3457.3,24.2727]
[1754210746420,1.7944,3457.4,3457.3,24.5224]
[1754210747232,1.7944,3457.4,3457.3,24.2727]
[1754210749134,1.7944,3457.4,3457.3,4.6207]
[1754210749334,0.705,3457.4,3456.9,3.7864]
[1754210749632,1.7944,3457.0,3456.9,4.6886]
[1754210750021,1.7944,3457.0,3456.9,23.6547]
[1754210750223,1.7944,3457.0,3456.9,3.7864]
[1754210750420,1.7944,3457.0,3456.9,19.653]
[1754210750826,0.705,3457.0,3456.9,0.57861]
[1754210751427,1.7944,3457.0,3456.9,0.57861]
[1754210751833,0.705,3457.0,3456.8,20.53512]
[1754210752025,1.7944,3456.9,3456.8,20.53512]
[1754210752637,0.705,3456.9,3456.5,3.5113]
[1754210752836,1.7944,3456.7,3456.6,19.653]
[1754210753130,0.705,3456.6,3456.5,3.78647]
[1754210753335,1.7944,3456.6,3456.5,3.78647]
[1754210754735,1.7944,3456.6,3456.5,4.08997]
[1754210754939,1.7944,3456.6,3456.5,3.78647]
[1754210757140,0.705,3456.6,3456.3,19.656]
[1754210757339,1.7944,3456.4,3456.3,19.656]
[1754210757539,1.7944,3456.4,3456.3,19.9595]
[1754210757732,1.7944,3456.4,3456.3,20.3429]
[1754210758042,1.7944,3456.4,3456.3,20.9216]
[1754210758838,1.7944,3456.4,3456.3,1.2656]
[1754210759736,1.0287,3455.7,3455.6,2.24143]
[1754210759936,0.3237,3455.7,3455.6,21.89843]
[1754210761638,1.8199,3455.7,3455.6,21.89843]
[1754210762732,3.2078,3456.4,3455.9,0.57878]
[1754210762932,8.944,3457.8,3456.6,1.432]
[1754210762933,1.818,3456.7,3456.6,1.432]
[1754210764133,0.3043,3456.7,3456.6,1.6825]
[1754210764335,3.5121,3456.8,3456.7,1.30884]
[1754210764535,0.3043,3456.8,3456.7,2.26114]
[1754210766644,0.9801,3456.8,3456.7,2.26114]
[1754210766845,1.6114,3456.8,3456.7,2.26114]
[1754210767042,1.818,3456.8,3456.7,2.26114]
[1754210768843,1.818,3456.8,3456.7,1.6825]
[1754210770138,0.8202,3456.8,3456.7,1.6825]
[1754210770645,1.1952,3457.2,3457.1,0.4054]
[1754210770847,2.68007395,3457.2,3457.1,1.432]
[1754210771143,1.818,3457.2,3457.1,1.432]
[1754210774348,2.68326801,3457.2,3457.1,1.432]
[1754210774845,1.818,3457.2,3457.1,1.432]
[1754210775039,2.68329665,3457.2,3457.1,1.432]
[1754210778349,2.93161997,3457.2,3457.1,1.432]
[1754210778747,2.93162111,3457.2,3457.1,1.432]
[1754210780342,2.93162111,3457.2,3457.1,1.1072]
[1754210780542,2.93162111,3457.2,3457.1,0.9009]
[1754210781958,2.93162111,3457.2,3457.1,1.1072]
[1754210782449,2.93162111,3457.2,3457.1,1.432]
[1754210787349,2.93162111,3457.2,3457.1,0.9009]
[1754210788252,2.93162111,3457.2,3457.1,1.1072]
[1754210790158,2.93162111,3457.2,3457.1,1.432]
[1754210793860,2.93162111,3457.2,3457.1,1.1072]
[1754210794061,2.93162111,3457.2,3457.1,0.9009]
[1754210794365,2.93162111,3457.2,3457.1,0.5164]
[1754210794762,2.93162111,3457.2,3457.1,0.9005]
[1754210795262,2.93162111,3457.2,3457.1,1.1014]
[1754210795564,2.93162111,3457.2,3457.1,1.4184]
[1754210796062,1.11362111,3457.2,3457.1,1.6686]
[1754210796259,1.35373272,3457.7,3457.6,0.2049]
[1754210796450,1.35373272,3457.7,3457.6,0.5272]
[1754210796451,0.56425578,3457.7,3457.6,0.5272]
[1754210796857,0.6253,3457.7,3457.6,0.5272]
[1754210797062,1.2787,3457.7,3457.6,0.5272]
[1754210798865,1.5789,3457.7,3457.6,0.5272]
[1754210800364,1.7842,3457.7,3457.6,0.5272]
[1754210812069,2.36268,3457.7,3457.6,0.3223]
[1754210812269,2.36268,3457.7,3457.1,3.2078]
[1754210812270,1.0714,3457.1,3456.8,0.3223]
[1754210812572,1.7842,3456.9,3456.8,1.10582]
[1754210821286,1.7842,3456.7,3456.6,4.31365]
[1754210827687,0.3165,3456.7,3456.6,4.31365]
[1754210827891,0.3129,3457.0,3456.9,0.5072]
[1754210830191,0.6377,3457.0,3456.9,0.5072]
[1754210830580,0.8406,3457.0,3456.9,0.5072]
[1754210830788,0.3129,3457.0,3456.9,0.5072]
[1754210833690,1.4972,3457.6,3457.5,0.5072]
[1754210833896,1.822,3457.6,3457.5,0.5072]
[1754210835092,1.822,3457.6,3457.5,1.08571]
[1754210844499,1.822,3457.6,3457.5,0.78011]
[1754210844701,1.822,3457.6,3457.5,0.57851]
[1754210846907,1.822,3457.6,3457.5,1.08571]
[1754210855912,1.822,3457.6,3457.5,0.57851]
[1754210856209,3.78625,3457.9,3457.2,3.2078]
[1754210856210,1.7984,3457.3,3457.2,3.78636]
[1754210856508,1.7984,3457.3,3457.2,4.09586]
[1754210856705,1.7984,3457.3,3457.2,4.29976]
[1754210856910,1.7984,3457.3,3457.1,0.57857]
[1754210857115,1.7984,3457.2,3457.1,0.57857]
[1754210858418,1.7984,3457.2,3457.1,0.88807]
[1754210860526,1.0629,3457.1,3456.8,3.2078]
[1754210860821,5.261,3457.8,3456.8,3.2078]
[1754210860822,1.7984,3456.9,3456.8,4.29982]
[1754210869924,1.7984,3456.9,3456.8,3.99032]
[1754210870428,1.7984,3456.9,3456.8,4.29982]
[1754210870926,1.7984,3456.9,3456.8,3.2078]
[1754210873429,1.7984,3456.9,3456.8,3.5173]
[1754210874020,1.7984,3456.9,3456.8,3.7212]
[1754210875235,1.7984,3456.9,3456.8,3.2078]
[1754210875930,1.7984,3456.9,3456.4,3.2078]
[1754210875931,0.57865,3456.7,3456.4,3.2078]
[1754210876130,1.7984,3456.3,3456.2,20.43462]
[1754210876331,1.7984,3456.3,3456.2,20.74412]
[1754210881626,1.7984,3456.3,3456.2,1.09212]
[1754210881826,1.7984,3456.3,3456.2,20.74512]
[1754210882230,1.7984,3456.3,3456.2,20.74612]
[1754210882437,1.7984,3456.3,3456.1,42.23873]
[1754210882633,1.7984,3456.3,3456.2,19.654]
[1754210882828,1.8479,3456.2,3456.1,41.66]
[1754210883431,1.8479,3456.1,3456.0,3.2078]
[1754210883736,1.8479,3455.6,3455.5,3.2078]
[1754210884533,0.8021,3455.5,3455.1,3.2078]
[1754210884737,0.7204,3455.2,3455.1,3.2078]
[1754210884940,1.8479,3455.2,3455.1,3.2078]
[1754210886947,0.7204,3455.2,3455.0,0.57892]
[1754210887235,1.8479,3455.1,3455.0,1.06723]
[1754210890340,1.8479,3455.1,3455.0,0.57893]
[1754210891542,1.8479,3455.1,3455.0,1.06723]
[1754210892540,1.8479,3455.1,3455.0,1.37733]
[1754210892740,1.8479,3455.1,3455.0,1.58773]
[1754210893238,1.8479,3455.1,3455.0,2.10153]
[1754210897241,4.5642,3455.5,3455.4,0.57886]
[1754210897451,4.5642,3455.5,3455.4,2.10146]
[1754210897647,4.5642,3455.5,3455.4,2.42626]
[1754210897849,5.0557,3455.5,3455.4,2.42626]
[1754210898050,3.5184,3455.5,3455.4,2.42626]
[1754210898345,1.3564,3455.5,3455.4,2.42626]
[1754210898555,1.8479,3455.5,3455.4,2.42626]
[1754210900253,0.3106,3455.5,3455.4,2.42626]
[1754210900954,1.3415,3455.5,3455.4,2.42626]
[1754210901450,0.85,3455.5,3455.4,2.42626]
[1754210901646,0.3106,3455.5,3455.4,2.42626]
[1754210901951,3.2078,3456.1,3456.0,1.61306]
[1754210901952,4.2388,3456.1,3456.0,1.61306]
[1754210902144,1.8479,3456.1,3456.0,2.10136]
[1754210902544,1.8479,3456.1,3456.0,0.57876]
[1754210904149,1.1275,3456.0,3455.7,3.2078]
[1754210904453,1.8479,3455.8,3455.7,0.57881]
[1754210905550,1.8479,3455.8,3455.7,2.10141]
[1754210912061,1.3292,3455.9,3455.8,1.7895]
[1754210912259,1.856,3455.9,3455.8,1.7895]
[1754210913365,1.3283,3455.8,3455.6,0.57882]
[1754210913562,1.856,3455.7,3455.6,0.57882]
[1754210913763,1.856,3455.7,3455.6,1.03792]
[1754210913958,1.856,3455.7,3455.6,1.55032]
[1754210914170,1.856,3455.7,3455.6,2.07142]
[1754210915967,1.856,3455.7,3455.6,1.03792]
[1754210916671,1.856,3455.7,3455.6,0.57882]
[1754210917272,1.856,3455.7,3455.6,1.03792]
[1754210918173,1.856,3455.7,3455.6,0.57882]
[1754210918369,1.856,3455.7,3455.4,1.34525]
[1754210918573,1.856,3455.5,3455.4,1.55035]
[1754210919072,2.71805888,3455.5,3455.4,1.55035]
[1754210919768,2.71805888,3455.5,3455.4,2.07145]
[1754210919970,2.71805888,3455.5,3455.4,1.55405]
[1754210920170,2.71805888,3455.5,3455.4,1.86135]
[1754210920369,2.71805888,3455.5,3455.4,2.07145]
[1754210922275,2.71805888,3455.5,3455.4,0.57885]
[1754210922673,2.71805888,3455.5,3455.4,1.34525]
[1754210922874,2.71805888,3455.5,3455.4,2.07145]
[1754210923277,2.71805888,3455.5,3455.4,2.36835]
[1754210923769,2.71805888,3455.5,3455.4,0.57885]
[1754210923974,2.71805888,3455.5,3455.4,2.07145]
[1754210924174,2.71805888,3455.5,3455.4,2.36835]
[1754210931683,2.71805888,3455.5,3455.4,2.07145]
[1754210932181,1.91105888,3455.5,3455.4,1.76415]
[1754210932385,2.71805888,3455.5,3455.4,2.36835]
[1754210932584,2.23735888,3455.5,3455.4,2.36835]
[1754210935084,2.71805888,3455.5,3455.4,2.36835]
[1754210937793,2.71805888,3455.5,3455.4,2.07145]
[1754210938189,2.71805888,3455.5,3455.4,1.03795]
[1754210938491,2.71805888,3455.5,3455.4,0.57885]
[1754210938694,2.71805888,3455.5,3455.4,1.24305]
[1754210938895,2.71805888,3455.5,3455.4,2.07145]
[1754210943885,2.71805888,3455.5,3455.2,3.78669]
[1754210944085,0.7526,3455.3,3455.2,3.78669]
[1754210944285,2.69995888,3455.3,3455.2,3.78669]
[1754210944587,2.69995888,3455.3,3455.2,4.26979]
[1754210944891,1.46755888,3455.3,3455.2,5.63749]
[1754210945085,1.2944,3455.3,3455.2,5.63749]
[1754210946187,1.8379,3455.3,3455.2,5.63749]
[1754210946788,2.70159468,3455.3,3455.2,5.63749]
[1754210947087,1.8379,3455.3,3455.2,5.63749]
[1754210947483,2.70159146,3455.3,3455.2,5.63749]
[1754210948883,2.70159146,3455.3,3455.2,5.32359]
[1754210949387,2.70159146,3455.3,3455.2,5.01219]
[1754210950184,2.70159146,3455.3,3455.2,5.32359]
[1754210952686,2.70159146,3455.3,3455.2,3.2078]
[1754210952987,2.70159146,3455.3,3454.4,1.76147]
[1754210952988,0.7849,3454.9,3454.8,3.78675]
[1754210953289,1.8379,3454.9,3454.8,3.78675]
[1754210953484,2.6988948,3454.9,3454.8,3.78675]
[1754210953788,1.8379,3454.9,3454.8,3.78675]
[1754210953980,1.8379,3454.9,3454.8,5.32365]
[1754210954181,1.8379,3454.9,3454.8,5.63755]
[1754210954589,1.8379,3454.9,3454.8,5.32365]
[1754210955792,1.8379,3454.9,3454.8,3.78675]
[1754210955991,1.8379,3454.9,3454.8,4.26985]
[1754210956180,1.8379,3454.9,3454.8,5.32365]
[1754210956892,1.8379,3454.9,3454.8,5.01225]
[1754210957092,2.69867445,3454.9,3454.8,4.47725]
[1754210957292,2.69867445,3454.9,3454.8,3.2078]
[1754210957490,1.0853,3454.8,3454.5,19.659]
[1754210957795,1.8379,3454.5,3454.4,1.06213]
[1754210957981,1.8379,3454.5,3454.4,1.58093]
[1754210958586,1.8379,3454.5,3454.4,1.90403]
[1754210958787,1.8379,3454.5,3454.4,2.11593]
[1754210959487,1.8379,3454.5,3454.4,1.06213]
[1754210959885,1.8379,3454.5,3454.4,1.26953]
[1754210960194,1.8379,3454.5,3454.4,2.11593]
[1754210960785,0.2091,3454.1,3454.0,19.661]
[1754210960998,1.8379,3454.1,3454.0,20.7232]
[1754210961191,1.8379,3454.1,3454.0,2.4299]
[1754210962087,1.8379,3454.1,3454.0,2.116]
[1754210962288,3.78677,3454.8,3454.0,2.116]
[1754210962289,0.4798,3454.3,3454.0,2.4299]
[1754210962489,1.8379,3454.5,3454.4,2.42983]
[1754210962690,2.69678186,3454.5,3454.4,2.11593]
[1754210962889,0.85888186,3454.5,3454.4,2.42983]
[1754210963097,6.1007,3455.1,3455.0,2.42973]
[1754210963294,2.73620384,3455.1,3455.0,2.42973]
[1754210963494,2.95420384,3455.1,3455.0,2.42973]
[1754210963698,2.69686101,3455.1,3455.0,2.11583]
[1754210963902,2.69686101,3455.1,3455.0,1.5369]
[1754210964406,2.69686101,3455.1,3454.4,19.662]
[1754210964407,0.7526,3454.6,3454.5,0.57901]
[1754210964590,1.8379,3454.6,3454.5,0.57901]
[1754210964789,1.8379,3454.6,3454.5,0.78641]
[1754210964994,1.8379,3454.6,3454.5,2.11591]
[1754210965192,1.3581,3454.6,3454.5,2.42981]
[1754210965504,0.3004,3454.9,3454.6,1.3214]
[1754210965703,4.7406,3455.6,3455.5,1.32125]
[1754210965895,6.1620672,3455.6,3455.5,2.11575]
[1754210966290,6.1620672,3455.6,3455.5,0.57885]
[1754210967100,11.4230672,3455.6,3455.5,0.57885]
[1754210968001,10.9432672,3455.6,3455.5,0.57885]
[1754210968207,6.1620672,3455.6,3455.5,2.42965]
[1754210968500,5.90475605,3455.6,3455.5,2.42965]
[1754210972105,4.06685605,3455.6,3455.5,2.42965]
[1754210972298,0.85905605,3455.6,3455.5,2.42965]
[1754210972695,0.3272,3455.8,3455.5,2.42965]
[1754210972902,4.164,3456.2,3456.1,0.3284]
[1754210973110,6.19038701,3456.2,3456.1,1.8342]
[1754210973503,2.98258701,3456.2,3456.1,1.8342]
[1754210973915,2.98258701,3456.2,3456.1,1.5223]
[1754210974108,2.72528702,3456.2,3456.1,1.2016]
[1754210974511,1.8661,3456.2,3456.1,1.2016]
[1754210975313,1.8661,3456.2,3456.1,0.6694]
[1754210976809,1.8661,3456.2,3456.1,1.5223]
[1754210977712,1.8661,3456.2,3456.1,1.8342]
[1754210978011,4.7467,3456.7,3456.6,0.6694]
[1754210978212,5.862272,3456.7,3456.6,0.6694]
[1754210978512,6.189472,3456.7,3456.6,0.6694]
[1754210978905,2.981672,3456.7,3456.6,1.5223]
[1754210979107,2.72456358,3456.7,3456.6,1.5223]
[1754210979510,1.8661,3456.7,3456.6,1.5223]
[1754210980313,1.8661,3456.7,3456.4,0.89939]
[1754210980504,3.2078,3457.1,3456.4,0.89939]
[1754210980505,1.0808,3456.5,3456.4,2.10099]
[1754210980705,1.8661,3456.5,3456.4,2.10099]
[1754210982808,0.7853,3456.8,3456.4,1.8342]
[1754210983013,1.8661,3456.8,3456.7,2.41284]
[1754210987711,0.8472,3456.8,3456.7,2.41284]
[1754210987908,6.0146,3457.3,3457.2,1.5223]
[1754210988114,6.0146,3457.3,3457.2,1.8342]
[1754210988513,6.6474,3457.3,3457.2,1.8342]
[1754210988815,7.1271,3457.3,3457.2,1.8342]
[1754210991316,0.3272,3457.3,3457.2,1.8342]
[1754210991917,4.5942,3457.5,3457.4,1.8342]
[1754210992318,3.2078,3457.5,3457.4,1.8342]
[1754210992816,1.0592,3457.8,3457.7,0.7343]
[1754210993018,1.5389,3457.8,3457.7,1.8342]
[1754210993520,1.8661,3457.8,3457.7,1.8342]
[1754210994516,1.8661,3457.8,3457.7,1.5223]
[1754210999922,1.8661,3457.8,3457.7,1.8342]
[1754211000119,1.0808,3457.8,3457.7,1.5223]
[1754211000423,5.261,3458.1,3457.5,3.78631]
[1754211000424,1.8661,3458.1,3458.0,1.8342]
[1754211001224,1.8661,3458.1,3458.0,1.5223]
[1754211001914,0.7299,3457.6,3457.1,3.2078]
[1754211002118,5.261,3458.1,3457.4,0.57852]
[1754211002119,1.828,3457.5,3457.4,0.57852]
[1754211009029,3.2078,3457.8,3457.1,3.2078]
[1754211009030,1.613,3457.4,3457.3,0.57853]
[1754211009229,1.828,3457.4,3457.3,2.10103]
[1754211009533,1.828,3457.4,3457.3,0.57853]
[1754211009829,1.828,3457.3,3457.2,0.57855]
[1754211010128,1.828,3457.2,3457.1,0.57857]
[1754211010323,1.58847257,3457.2,3457.0,0.57859]
[1754211010625,1.828,3457.1,3457.0,1.06559]
[1754211012529,2.68704999,3457.1,3457.0,1.06559]
[1754211012937,1.58894999,3457.1,3456.9,0.5786]
[1754211013232,1.828,3457.0,3456.9,0.5786]
[1754211013531,1.828,3456.9,3456.8,0.57862]
[1754211013827,1.828,3456.9,3456.7,0.57864]
[1754211014030,1.828,3456.8,3456.7,0.57864]
[1754211014631,1.828,3456.8,3456.7,1.06564]
[1754211015234,1.828,3456.8,3456.7,0.487]
[1754211016130,1.828,3456.8,3456.7,1.0064]
[1754211016718,1.828,3456.8,3456.7,1.3165]
[1754211017028,1.828,3456.8,3456.7,1.822]
[1754211018533,1.0418,3457.3,3457.2,0.7248]
[1754211018727,2.68758865,3457.3,3457.2,1.5225]
[1754211018926,2.68758865,3457.3,3457.2,1.822]
[1754211020830,2.68758865,3457.3,3457.2,1.5225]
[1754211021129,1.828,3457.1,3457.0,0.57859]
[1754211021335,2.68748737,3457.1,3457.0,0.57859]
[1754211021532,0.7299,3457.0,3456.8,0.57862]
[1754211021830,1.828,3456.9,3456.8,0.57862]
[1754211022037,1.828,3456.8,3456.6,1.06565]
[1754211022231,1.828,3456.7,3456.6,1.06565]
[1754211022626,1.828,3456.7,3456.6,1.79045]
[1754211022826,1.828,3456.7,3456.6,2.10115]
[1754211023230,1.828,3456.7,3456.6,2.40065]
[1754211023830,5.0358,3457.0,3456.9,2.40061]
[1754211024027,0.4241,3456.6,3456.5,0.99337]
[1754211024235,1.828,3456.6,3456.5,1.30347]
[1754211024632,1.828,3456.6,3456.5,2.10117]